Workbook

Sheet Título

Sheet BalançoHídrico
A1: Caso queira calcular ETp pelo método de Thornthwaite, que só deverá ser utilizado para a classificação climática, só necessita de entrar valores nas células com sombreado a verde (latitude, capacidade de água disponível (U),temperatura média (T) mensal e precipitação mensal (P). Depois de preencher prima o botão "Calcular Cf !". | AW1: Somas de P-ETP negativos: | BA1: =IF($K$10=0,C20,IF(AND(C20<0,N20<=0),BL1+C20,IF(AND(C20<0,N20>0),C20,0))) -> 0 | BB1: =IF(AND(D20<0,C20<=0),BA1+D20,IF(AND(D20<0,C20>0),D20,0)) -> 0 | BC1: 0 | BD1: 0 | BE1: -39 | BF1: -121 | BG1: -239 | BH1: -352 | BI1: -420 | BJ1: 0 | BK1: 0 | BL1: 0
A2: Para entrar com alternativa a Etp de Thornthwaite, preencha as células a amarelo (linha 16) em vez das células a verde na linha 12 e não necessita de premir o botão. | AW2: Mês com valor + negativo | BA2: =IF(AND(BA1=MIN($BA$1:$BL$1),BB1>=0),1,0) -> 0 | BB2: =IF(AND(BB1=MIN($BA$1:$BL$1),BC1>=0),1,0) -> 0 | BC2: 0 | BD2: 0 | BE2: 0 | BF2: 0 | BG2: 0 | BH2: 0 | BI2: 1 | BJ2: 0 | BK2: 0 | BL2: =IF(AND(BL1=MIN($BA$1:$BL$1),BA1>=0),1,0) -> 0
D3: BALANÇO HÍDRICO PELO MÉTODO DE THORNTHWAITE-MATHER | AW3: Match1: | AX3: =MATCH(1,BA2:BL2,0) -> 9 | AY3: Value: | AZ3: =INDEX(BA1:BL2,1,AX3) -> -420
F4: Estação: | G4: Tapada da Ajuda (Lisboa, Portugal)
D5: Graus | E5: Minutos | F5: Segundos | J5: Graus | K5: Minutos | L5: Segundos
C6: Latitude: | D6: 38 | E6: 42 | F6: 0 | G6: N | I6: Long.: | J6: 9 | K6: 11 | L6: 0 | M6: O | O6: Alt.: | P6: 50 | Q6: m
E7: Período dos dados:
B8: U | C8: 100
J10: P= | K10: =SUMIF(C20:N20,">0") -> 328.0 | L10: N= | M10: =SUMIF(C20:N20,"<0") -> -420.0
C11: J | D11: F | E11: M | F11: A | G11: M | H11: J | I11: J | J11: A | K11: S | L11: O | M11: N | N11: D | O11: Ano
A12: 1 | B12: T | C12: 11.00 | D12: 11.90 | E12: 13.00 | F12: 14.40 | G12: 16.60 | H12: 19.60 | I12: 21.80 | J12: 22.20 | K12: 20.90 | L12: 18.00 | M12: 14.20 | N12: 11.60 | O12: =AVERAGE(C12:N12) -> 16.3
A13: 2 | B13: i | C13: =(MAX(0,C12)/5)^1.514 -> 3.30 | D13: =(MAX(0,D12)/5)^1.514 -> 3.72 | E13: 4.25 | F13: 4.96 | G13: 6.15 | H13: 7.91 | I13: 9.29 | J13: 9.55 | K13: 8.72 | L13: 6.95 | M13: 4.86 | N13: 3.58 | O13: =SUM(C13:N13) -> 73.2 | P13: =I
A14: 3 | B14: E1 | C14: =IF(C12<=26.4,(16*((10*MAX(0,C12))/$O13)^(0.000000675*$O13^3-0.0000771*$O13^2+0.01792*$O13+0.49239))/30,-14.927+1.1392*C12-0.0154*C12^2) -> 1.05 | D14: =IF(D12<=26.4,(16*((10*MAX(0,D12))/$O13)^(0.000000675*$O13^3-0.0000771*$O13^2+0.01792*$O13+0.49239))/30,-14.927+1.1392*D12-0.0154*D12^2) -> 1.19 | E14: 1.38 | F14: 1.63 | G14: 2.07 | H14: 2.72 | I14: 3.25 | J14: 3.35 | K14: 3.03 | L14: 2.37 | M14: 1.60 | N14: 1.14
A15: 4 | B15: Cf | C15: 25.18 | D15: 24.92 | E15: 30.71 | F15: 32.86 | G15: 36.72 | H15: 36.94 | I15: 37.57 | J15: 35.24 | K15: 31.13 | L15: 28.92 | M15: 25.19 | N15: 24.47
A16: ETp (alternativa)
A18: 5 | B18: ETp | C18: =IF(C16="",ROUND(C14*C15,0),ROUND(C16,0)) -> 26 | D18: =IF(D16="",ROUND(D14*D15,0),ROUND(D16,0)) -> 30 | E18: 42 | F18: 54 | G18: 76 | H18: 101 | I18: 122 | J18: 118 | K18: 94 | L18: 68 | M18: 40 | N18: 28 | O18: =ROUND(SUM(C18:N18),0) -> 799.0
A19: 6 | B19: P | C19: 103 | D19: 102 | E19: 67 | F19: 59 | G19: 37 | H19: 19 | I19: 4 | J19: 5 | K19: 26 | L19: 77 | M19: 108 | N19: 100 | O19: =ROUND(SUM(C19:N19),0) -> 707.0
A20: 7 | B20: P-ETp | C20: =C19-C18 -> 77 | D20: =D19-D18 -> 72 | E20: 25 | F20: 5 | G20: -39 | H20: -82 | I20: -118 | J20: -113 | K20: -68 | L20: 9 | M20: 68 | N20: 72 | O20: =ROUND(SUM(C20:N20),0) -> -92.0
A21: 8 | B21: L | C21: =IF($K$10=0,"",IF($M$10=0,0,IF(OR($K$10>=ABS($M$10),AND($K$10<ABS($M$10),$K$10>=$C$8)),IF($AX$3=1,-$AZ$3,IF(C20>=0,-$C$8*LN(MIN((N24+C20),$C$8)/$C$8),N21+ABS(C20))),IF(AND(C20>0,D20<0),-$C$8*LN(($K$10/$C$8)/(1-EXP($M$10/$C$8))),ABS(C20)+N21)))) -> 0 | D21: =IF($K$10=0,"",IF($M$10=0,0,IF(OR($K$10>=ABS($M$10),AND($K$10<ABS($M$10),$K$10>=$C$8)),IF($AX$3=2,-$AZ$3,IF(D20>=0,-$C$8*LN(MIN((C24+D20),$C$8)/$C$8),C21+ABS(D20))),IF(AND(D20>0,E20<0),-$C$8*LN(($K$10/$C$8)/(1-EXP($M$10/$C$8))),ABS(D20)+C21)))) -> 0 | E21: =IF($K$10=0,"",IF($M$10=0,0,IF(OR($K$10>=ABS($M$10),AND($K$10<ABS($M$10),$K$10>=$C$8)),IF($AX$3=3,-$AZ$3,IF(E20>=0,-$C$8*LN(MIN((D24+E20),$C$8)/$C$8),D21+ABS(E20))),IF(AND(E20>0,F20<0),-$C$8*LN(($K$10/$C$8)/(1-EXP($M$10/$C$8))),ABS(E20)+D21)))) -> 0 | F21: =IF($K$10=0,"",IF($M$10=0,0,IF(OR($K$10>=ABS($M$10),AND($K$10<ABS($M$10),$K$10>=$C$8)),IF($AX$3=4,-$AZ$3,IF(F20>=0,-$C$8*LN(MIN((E24+F20),$C$8)/$C$8),E21+ABS(F20))),IF(AND(F20>0,G20<0),-$C$8*LN(($K$10/$C$8)/(1-EXP($M$10/$C$8))),ABS(F20)+E21)))) -> 0 | G21: =IF($K$10=0,"",IF($M$10=0,0,IF(OR($K$10>=ABS($M$10),AND($K$10<ABS($M$10),$K$10>=$C$8)),IF($AX$3=5,-$AZ$3,IF(G20>=0,-$C$8*LN(MIN((F24+G20),$C$8)/$C$8),F21+ABS(G20))),IF(AND(G20>0,H20<0),-$C$8*LN(($K$10/$C$8)/(1-EXP($M$10/$C$8))),ABS(G20)+F21)))) -> 39 | H21: =IF($K$10=0,"",IF($M$10=0,0,IF(OR($K$10>=ABS($M$10),AND($K$10<ABS($M$10),$K$10>=$C$8)),IF($AX$3=6,-$AZ$3,IF(H20>=0,-$C$8*LN(MIN((G24+H20),$C$8)/$C$8),G21+ABS(H20))),IF(AND(H20>0,I20<0),-$C$8*LN(($K$10/$C$8)/(1-EXP($M$10/$C$8))),ABS(H20)+G21)))) -> 121 | I21: =IF($K$10=0,"",IF($M$10=0,0,IF(OR($K$10>=ABS($M$10),AND($K$10<ABS($M$10),$K$10>=$C$8)),IF($AX$3=7,-$AZ$3,IF(I20>=0,-$C$8*LN(MIN((H24+I20),$C$8)/$C$8),H21+ABS(I20))),IF(AND(I20>0,J20<0),-$C$8*LN(($K$10/$C$8)/(1-EXP($M$10/$C$8))),ABS(I20)+H21)))) -> 239 | J21: =IF($K$10=0,"",IF($M$10=0,0,IF(OR($K$10>=ABS($M$10),AND($K$10<ABS($M$10),$K$10>=$C$8)),IF($AX$3=8,-$AZ$3,IF(J20>=0,-$C$8*LN(MIN((I24+J20),$C$8)/$C$8),I21+ABS(J20))),IF(AND(J20>0,K20<0),-$C$8*LN(($K$10/$C$8)/(1-EXP($M$10/$C$8))),ABS(J20)+I21)))) -> 352 | K21: =IF($K$10=0,"",IF($M$10=0,0,IF(OR($K$10>=ABS($M$10),AND($K$10<ABS($M$10),$K$10>=$C$8)),IF($AX$3=9,-$AZ$3,IF(K20>=0,-$C$8*LN(MIN((J24+K20),$C$8)/$C$8),J21+ABS(K20))),IF(AND(K20>0,L20<0),-$C$8*LN(($K$10/$C$8)/(1-EXP($M$10/$C$8))),ABS(K20)+J21)))) -> 420 | L21: =IF($K$10=0,"",IF($M$10=0,0,IF(OR($K$10>=ABS($M$10),AND($K$10<ABS($M$10),$K$10>=$C$8)),IF($AX$3=10,-$AZ$3,IF(L20>=0,-$C$8*LN(MIN((K24+L20),$C$8)/$C$8),K21+ABS(L20))),IF(AND(L20>0,M20<0),-$C$8*LN(($K$10/$C$8)/(1-EXP($M$10/$C$8))),ABS(L20)+K21)))) -> 230 | M21: =IF($K$10=0,"",IF($M$10=0,0,IF(OR($K$10>=ABS($M$10),AND($K$10<ABS($M$10),$K$10>=$C$8)),IF($AX$3=11,-$AZ$3,IF(M20>=0,-$C$8*LN(MIN((L24+M20),$C$8)/$C$8),L21+ABS(M20))),IF(AND(M20>0,N20<0),-$C$8*LN(($K$10/$C$8)/(1-EXP($M$10/$C$8))),ABS(M20)+L21)))) -> 25 | N21: =IF($K$10=0,"",IF($M$10=0,0,IF(OR($K$10>=ABS($M$10),AND($K$10<ABS($M$10),$K$10>=$C$8)),IF($AX$3=12,-$AZ$3,IF(N20>=0,-$C$8*LN(MIN((M24+N20),C8)/$C$8),M21+ABS(N20))),IF(AND(N20>0,C20<0),-$C$8*LN(($K$10/$C$8)/(1-EXP($M$10/$C$8))),ABS(N20)+M21)))) -> 0
A22: 9 | B22: l | C22: =IF(OR($K$10=0, C20>=0),"",C21/$C8) ->  | D22: =IF(OR($K$10=0, D20>=0),"",D21/$C8) ->  | G22: 0.39 | H22: 1.21 | I22: 2.39 | J22: 3.52 | K22: 4.20
A23: 10 | B23: a | C23: =IF(OR($K$10=0,C20>=0),"",EXP(-C22)) ->  | D23: =IF(OR($K$10=0,D20>=0),"",EXP(-D22)) ->  | G23: 0.68 | H23: 0.30 | I23: 0.09 | J23: 0.03 | K23: 0.01
A24: 11 | B24: A | C24: =IF($M$10=0,$C$8,ROUND(IF($K$10=0,0,IF(C23="",MIN($C8,N24+C20),MIN($C8,C23*$C8))),0)) -> 100 | D24: =IF($M$10=0,$C$8,ROUND(IF($K$10=0,0,IF(D23="",MIN($C8,C24+D20),MIN($C8,D23*$C8))),0)) -> 100 | E24: 100 | F24: 100 | G24: 68 | H24: 30 | I24: 9 | J24: 3 | K24: 1 | L24: 10 | M24: 78 | N24: 100
A25: 12 | B25: DA | C25: =C24-N24 -> 0 | D25: =D24-C24 -> 0 | E25: =E24-D24 -> 0 | F25: 0 | G25: -32 | H25: -38 | I25: -21 | J25: -6 | K25: -2 | L25: 9 | M25: =M24-L24 -> 68 | N25: 22 | O25: =SUM(C25:N25) -> 0.0
A26: 13 | B26: ETr | C26: =IF(C20>=0,C18,C19+ABS(C25)) -> 26 | D26: =IF(D20>=0,D18,D19+ABS(D25)) -> 30 | E26: =IF(E20>=0,E18,E19+ABS(E25)) -> 42 | F26: 54 | G26: 69 | H26: 57 | I26: 25 | J26: 11 | K26: 28 | L26: 68 | M26: 40 | N26: 28 | O26: =SUM(C26:N26) -> 478.0
A27: 14 | B27: D | C27: =C18-C26 -> 0 | D27: =D18-D26 -> 0 | E27: 0 | F27: 0 | G27: 7 | H27: 44 | I27: 97 | J27: 107 | K27: 66 | L27: 0 | M27: 0 | N27: 0 | O27: =SUM(C27:N27) -> 321.0
A28: 15 | B28: S | C28: =IF(C24=$C8,C20-C25,0) -> 77 | D28: =IF(D24=$C8,D20-D25,0) -> 72 | E28: 25 | F28: 5 | G28: 0 | H28: 0 | I28: 0 | J28: 0 | K28: 0 | L28: 0 | M28: =IF(M24=$C8,M20-M25,0) -> 0 | N28: =IF(N24=$C8,N20-N25,0) -> 50 | O28: =SUM(C28:N28) -> 229.0
B29: Este método é desenvolvido no artigo "Sobre o novo método de balanço hidrológico do solo de Thornthwaite-Mather." P. de Varennes e Mendonça (1958) [Anais do ISA XXII, 271-282]. Um extracto modificado deste método apresenta-se na folha seguinte deste livro de Excel
C30: Fórmula para o cálculo do armazenamento de água (A):
C33: Verificações:
F35: Valores calculados | H35: Valores esperados
F37: =O25 -> 0.0 | H37: 0.0
F40: =O18+O20 -> 707.0 | H40: =O19 -> 707.0
F43: =O26+O28 -> 707.0 | H43: =O19 -> 707.0
F46: =O18-O26 -> 321.0 | H46: =O27 -> 321.0

Sheet ArtigoSobreMétodo

Sheet TomeApontamentosAqui
